[Event "Titled Tuesday Blitz March 14 Early 2023"]
[White "Lesbekova, Assel"]
[Black "Liu, Casper"]
[WhiteFideId "13713248"]
[BlackFideId "1454153"]
[WhiteElo "1799"]
[BlackElo "2221"]
[Result "1-0"]
[Round "10"]
[TimeControl "180+2"]
[Date "2023.03.14"]
[WhiteClock "0:00:11"]
[BlackClock "0:00:06"]

1. e4 {[%clk 0:03:00]}  c5 {[%clk 0:02:54]} 2. Nf3 {[%clk 0:02:59]}  g6 {[%clk 0:02:54]} 3. d4 {[%clk 0:02:57]}  cxd4 {[%clk 0:02:55]} 4. Nxd4 {[%clk 0:02:58]}  Bg7 {[%clk 0:02:54]} 5. c4 {[%clk 0:02:58]}  Nf6 {[%clk 0:02:53]} 6. Nc3 {[%clk 0:02:57]}  Nc6 {[%clk 0:02:53]} 7. Nc2 {[%clk 0:02:58]}  O-O {[%clk 0:02:53]} 8. Be3 {[%clk 0:02:57]}  d6 {[%clk 0:02:52]} 9. Be2 {[%clk 0:02:57]}  Ne5 {[%clk 0:02:51]} 10. f3 {[%clk 0:02:56]}  Qc7 {[%clk 0:02:48]} 11. b3 {[%clk 0:02:51]}  Be6 {[%clk 0:02:48]} 12. Qd2 {[%clk 0:02:50]}  Nfd7 {[%clk 0:02:49]} 13. Bd4 {[%clk 0:02:50]}  a6 {[%clk 0:02:47]} 14. O-O {[%clk 0:02:48]}  Rfc8 {[%clk 0:02:43]} 15. Ne3 {[%clk 0:02:47]}  b5 {[%clk 0:02:41]} 16. cxb5 {[%clk 0:02:41]}  Nxf3+ {[%clk 0:02:41]} 17. gxf3 {[%clk 0:02:35]}  Bxd4 {[%clk 0:02:42]} 18. Qxd4 {[%clk 0:02:34]}  Qxc3 {[%clk 0:02:43]} 19. Qxc3 {[%clk 0:02:33]}  Rxc3 {[%clk 0:02:44]} 20. Nd1 {[%clk 0:02:30]}  Rc5 {[%clk 0:02:43]} 21. bxa6 {[%clk 0:02:29]}  Nb8 {[%clk 0:02:42]} 22. b4 {[%clk 0:02:28]}  Rc2 {[%clk 0:02:42]} 23. Bd3 {[%clk 0:02:28]}  Rd2 {[%clk 0:02:42]} 24. Nf2 {[%clk 0:02:20]}  Nxa6 {[%clk 0:02:41]} 25. a3 {[%clk 0:02:17]}  Nb8 {[%clk 0:02:29]} 26. a4 {[%clk 0:02:09]}  Nc6 {[%clk 0:02:10]} 27. b5 {[%clk 0:02:09]}  Ne5 {[%clk 0:02:09]} 28. Rfd1 {[%clk 0:01:43]}  Rxd1+ {[%clk 0:02:08]} 29. Rxd1 {[%clk 0:01:44]}  Rxa4 {[%clk 0:02:09]} 30. Rb1 {[%clk 0:01:43]}  Nxf3+ {[%clk 0:02:04]} 31. Kg2 {[%clk 0:01:40]}  Ne5 {[%clk 0:01:45]} 32. b6 {[%clk 0:01:38]}  Ra8 {[%clk 0:01:44]} 33. b7 {[%clk 0:01:34]}  Rb8 {[%clk 0:01:44]} 34. Ba6 {[%clk 0:01:31]}  f5 {[%clk 0:01:31]} 35. Rc1 {[%clk 0:01:28]}  fxe4 {[%clk 0:01:15]} 36. Nxe4 {[%clk 0:01:18]}  Kg7 {[%clk 0:01:02]} 37. Rc8 {[%clk 0:01:13]}  Nd7 {[%clk 0:01:01]} 38. Nc3 {[%clk 0:00:55]}  d5 {[%clk 0:00:47]} 39. Nb5 {[%clk 0:00:48]}  Bf5 {[%clk 0:00:25]} 40. Kf2 {[%clk 0:00:42]}  e5 {[%clk 0:00:25]} 41. Na7 {[%clk 0:00:35]}  e4 {[%clk 0:00:04]} 42. Nc6 {[%clk 0:00:33]}  Rxb7 {[%clk 0:00:03]} 43. Bxb7 {[%clk 0:00:33]}  Nf6 {[%clk 0:00:04]} 44. Rc7+ {[%clk 0:00:31]}  Kh6 {[%clk 0:00:02]} 45. Nd4 {[%clk 0:00:30]}  Kg5 {[%clk 0:00:02]} 46. Nxf5 {[%clk 0:00:28]}  gxf5 {[%clk 0:00:03]} 47. Rc5 {[%clk 0:00:19]}  d4 {[%clk 0:00:03]} 48. Bc8 {[%clk 0:00:17]}  Ng4+ {[%clk 0:00:02]} 49. Ke1 {[%clk 0:00:17]}  Ne3 {[%clk 0:00:02]} 50. h3 {[%clk 0:00:15]}  h5 {[%clk 0:00:03]} 51. Ke2 {[%clk 0:00:14]}  h4 {[%clk 0:00:02]} 52. Bd7 {[%clk 0:00:14]}  Kf4 {[%clk 0:00:03]} 53. Ra5 {[%clk 0:00:12]}  Kg3 {[%clk 0:00:03]} 54. Bxf5 {[%clk 0:00:12]}  Ng2 {[%clk 0:00:03]} 55. Ra4 {[%clk 0:00:09]}  Nf4+ {[%clk 0:00:04]} 56. Ke1 {[%clk 0:00:09]}  d3 {[%clk 0:00:04]} 57. Rxe4 {[%clk 0:00:09]}  Nxh3 {[%clk 0:00:05]} 58. Re3+ {[%clk 0:00:09]}  Kf4 {[%clk 0:00:05]} 59. Rxh3 {[%clk 0:00:10]}  Kxf5 {[%clk 0:00:06]} 60. Rxh4 {[%clk 0:00:10]}  Ke5 {[%clk 0:00:06]} 61. Kd2 {[%clk 0:00:11]} 1-0


[Site "https://www.chess.com"]

[Event "Titled Tuesday Blitz March 14 Early 2023"]
[White "Clawitter, Craig"]
[Black "Perez Rodriguez, Jennifer"]
[WhiteFideId "2023105"]
[BlackFideId "3507831"]
[WhiteElo "2258"]
[BlackElo "2170"]
[Result "0-1"]
[Round "10"]
[TimeControl "180+2"]
[Date "2023.03.14"]
[WhiteClock "0:00:03"]
[BlackClock "0:00:35"]

1. e4 {[%clk 0:02:55]}  e5 {[%clk 0:02:53]} 2. Nc3 {[%clk 0:02:50]}  Nc6 {[%clk 0:02:52]} 3. f4 {[%clk 0:02:50]}  exf4 {[%clk 0:02:51]} 4. Nf3 {[%clk 0:02:50]}  g5 {[%clk 0:02:50]} 5. g3 {[%clk 0:02:50]}  g4 {[%clk 0:02:37]} 6. Nh4 {[%clk 0:02:48]}  f3 {[%clk 0:02:34]} 7. d4 {[%clk 0:02:45]}  d6 {[%clk 0:02:32]} 8. Be3 {[%clk 0:02:43]}  Be7 {[%clk 0:02:28]} 9. Qd2 {[%clk 0:02:13]}  Bxh4 {[%clk 0:02:27]} 10. gxh4 {[%clk 0:02:13]}  Qxh4+ {[%clk 0:02:27]} 11. Bf2 {[%clk 0:02:12]}  Qd8 {[%clk 0:02:20]} 12. O-O-O {[%clk 0:02:09]}  Nge7 {[%clk 0:02:17]} 13. h3 {[%clk 0:02:04]}  f5 {[%clk 0:02:00]} 14. exf5 {[%clk 0:01:48]}  Bxf5 {[%clk 0:02:01]} 15. hxg4 {[%clk 0:01:43]}  Bxg4 {[%clk 0:01:59]} 16. Qg5 {[%clk 0:01:24]}  Qd7 {[%clk 0:01:52]} 17. Ne4 {[%clk 0:01:12]}  Ng8 {[%clk 0:01:07]} 18. Bb5 {[%clk 0:00:47]}  a6 {[%clk 0:01:04]} 19. Bc4 {[%clk 0:00:20]}  Qf5 {[%clk 0:00:55]} 20. Bxg8 {[%clk 0:00:16]}  Qxg5+ {[%clk 0:00:54]} 21. Nxg5 {[%clk 0:00:12]}  Rxg8 {[%clk 0:00:55]} 22. Nxh7 {[%clk 0:00:12]}  O-O-O {[%clk 0:00:52]} 23. Nf6 {[%clk 0:00:12]}  Rg6 {[%clk 0:00:51]} 24. Nxg4 {[%clk 0:00:10]}  Rxg4 {[%clk 0:00:51]} 25. Rh3 {[%clk 0:00:09]}  Rf8 {[%clk 0:00:50]} 26. Rd3 {[%clk 0:00:09]}  Rgf4 {[%clk 0:00:45]} 27. Kd2 {[%clk 0:00:06]}  Ne7 {[%clk 0:00:44]} 28. c4 {[%clk 0:00:04]}  c5 {[%clk 0:00:36]} 29. dxc5 {[%clk 0:00:03]}  dxc5 {[%clk 0:00:36]} 30. Bxc5 {[%clk 0:00:03]}  f2 {[%clk 0:00:35]} 0-1


[Site "https://www.chess.com"]

[Event "Titled Tuesday Blitz March 14 Early 2023"]
[White "Martin, Lewis"]
[Black "Buscar, Michael"]
[WhiteFideId "410551"]
[BlackFideId "2603616"]
[WhiteElo "2145"]
[BlackElo "2010"]
[Result "0-1"]
[Round "10"]
[TimeControl "180+2"]
[Date "2023.03.14"]
[WhiteClock "0:01:28"]
[BlackClock "0:01:29"]

1. e4 {[%clk 0:03:00]}  c5 {[%clk 0:02:51]} 2. Nf3 {[%clk 0:03:00]}  Nc6 {[%clk 0:02:51]} 3. d4 {[%clk 0:02:59]}  cxd4 {[%clk 0:02:51]} 4. Nxd4 {[%clk 0:03:00]}  Nf6 {[%clk 0:02:51]} 5. Nc3 {[%clk 0:03:00]}  e5 {[%clk 0:02:51]} 6. Ndb5 {[%clk 0:03:00]}  h6 {[%clk 0:02:52]} 7. a4 {[%clk 0:02:51]}  d6 {[%clk 0:02:47]} 8. Bc4 {[%clk 0:02:46]}  Be6 {[%clk 0:02:44]} 9. Bxe6 {[%clk 0:02:45]}  fxe6 {[%clk 0:02:44]} 10. O-O {[%clk 0:02:44]}  Be7 {[%clk 0:02:43]} 11. f4 {[%clk 0:02:39]}  O-O {[%clk 0:02:42]} 12. f5 {[%clk 0:02:36]}  a6 {[%clk 0:02:28]} 13. Na3 {[%clk 0:02:36]}  d5 {[%clk 0:02:21]} 14. fxe6 {[%clk 0:02:30]}  d4 {[%clk 0:02:18]} 15. Nd5 {[%clk 0:02:22]}  Nxd5 {[%clk 0:02:16]} 16. exd5 {[%clk 0:02:23]}  Qxd5 {[%clk 0:02:16]} 17. Re1 {[%clk 0:02:09]}  Qxe6 {[%clk 0:02:12]} 18. Qh5 {[%clk 0:02:08]}  Qf6 {[%clk 0:02:01]} 19. Qe2 {[%clk 0:01:51]}  Rf7 {[%clk 0:01:57]} 20. Bd2 {[%clk 0:01:48]}  Raf8 {[%clk 0:01:56]} 21. Nc4 {[%clk 0:01:46]}  e4 {[%clk 0:01:51]} 22. h3 {[%clk 0:01:36]}  e3 {[%clk 0:01:48]} 23. Bxe3 {[%clk 0:01:35]}  dxe3 {[%clk 0:01:47]} 24. Qxe3 {[%clk 0:01:36]}  Qf2+ {[%clk 0:01:36]} 25. Qxf2 {[%clk 0:01:35]}  Rxf2 {[%clk 0:01:37]} 26. c3 {[%clk 0:01:34]}  Bc5 {[%clk 0:01:35]} 27. Kh1 {[%clk 0:01:34]}  b5 {[%clk 0:01:28]} 28. axb5 {[%clk 0:01:28]}  axb5 {[%clk 0:01:29]} 0-1


[Site "https://www.chess.com"]

[Event "Titled Tuesday Blitz March 14 Early 2023"]
[White "Sarkar, Justin"]
[Black "Kalajzic, Ivan"]
[WhiteFideId "2010011"]
[BlackFideId "14506378"]
[WhiteElo "2189"]
[BlackElo "2203"]
[Result "1-0"]
[Round "10"]
[TimeControl "180+2"]
[Date "2023.03.14"]
[WhiteClock "0:00:15"]
[BlackClock "0:00:25"]

1. d4 {[%clk 0:02:27]}  Nc6 {[%clk 0:02:18]} 2. c4 {[%clk 0:02:15]}  e5 {[%clk 0:02:17]} 3. d5 {[%clk 0:02:15]}  Nce7 {[%clk 0:02:17]} 4. e4 {[%clk 0:02:11]}  Nf6 {[%clk 0:02:17]} 5. Nc3 {[%clk 0:02:09]}  Ng6 {[%clk 0:02:17]} 6. h4 {[%clk 0:01:55]}  h5 {[%clk 0:02:16]} 7. g3 {[%clk 0:01:51]}  Bc5 {[%clk 0:02:16]} 8. Bd3 {[%clk 0:01:47]}  d6 {[%clk 0:02:15]} 9. Bg5 {[%clk 0:01:34]}  c6 {[%clk 0:02:11]} 10. Qd2 {[%clk 0:01:10]}  Bg4 {[%clk 0:01:56]} 11. f3 {[%clk 0:01:05]}  Bd7 {[%clk 0:01:55]} 12. Nge2 {[%clk 0:01:02]}  Qb6 {[%clk 0:01:19]} 13. Na4 {[%clk 0:00:54]}  Qb4 {[%clk 0:01:16]} 14. Nxc5 {[%clk 0:00:51]}  Qxc5 {[%clk 0:01:15]} 15. Be3 {[%clk 0:00:46]}  Qxe3 {[%clk 0:01:05]} 16. Qxe3 {[%clk 0:00:46]}  c5 {[%clk 0:01:05]} 17. Rb1 {[%clk 0:00:43]}  a5 {[%clk 0:01:04]} 18. Nc3 {[%clk 0:00:42]}  Ke7 {[%clk 0:01:00]} 19. Bc2 {[%clk 0:00:41]}  a4 {[%clk 0:01:00]} 20. Kf2 {[%clk 0:00:38]}  Rhf8 {[%clk 0:00:58]} 21. Kg2 {[%clk 0:00:38]}  Nh7 {[%clk 0:00:57]} 22. Qd2 {[%clk 0:00:36]}  f5 {[%clk 0:00:50]} 23. exf5 {[%clk 0:00:31]}  Bxf5 {[%clk 0:00:51]} 24. Bxf5 {[%clk 0:00:28]}  Rxf5 {[%clk 0:00:52]} 25. Qc2 {[%clk 0:00:27]}  Raf8 {[%clk 0:00:50]} 26. Rhf1 {[%clk 0:00:25]}  Nh8 {[%clk 0:00:34]} 27. Nxa4 {[%clk 0:00:22]}  g5 {[%clk 0:00:34]} 28. b4 {[%clk 0:00:20]}  gxh4 {[%clk 0:00:31]} 29. bxc5 {[%clk 0:00:19]}  Rg5 {[%clk 0:00:26]} 30. Qxh7+ {[%clk 0:00:16]}  Rf7 {[%clk 0:00:26]} 31. Rxb7+ {[%clk 0:00:16]}  Kf6 {[%clk 0:00:25]} 32. Qxh8+ {[%clk 0:00:15]} 1-0


[Site "https://www.chess.com"]

[Event "Titled Tuesday Blitz March 14 Early 2023"]
[White "Zaichenko, Daria"]
[Black "Manon-og, Ramon Jr."]
[WhiteFideId "4197453"]
[BlackFideId "5200776"]
[WhiteElo "2039"]
[BlackElo "2336"]
[Result "1-0"]
[Round "10"]
[TimeControl "180+2"]
[Date "2023.03.14"]
[WhiteClock "0:00:15"]
[BlackClock "0:00:52"]

1. e4 {[%clk 0:02:49]}  c5 {[%clk 0:02:42]} 2. Nf3 {[%clk 0:02:47]}  d6 {[%clk 0:02:42]} 3. d4 {[%clk 0:02:47]}  cxd4 {[%clk 0:02:43]} 4. Nxd4 {[%clk 0:02:48]}  Nf6 {[%clk 0:02:43]} 5. Nc3 {[%clk 0:02:48]}  a6 {[%clk 0:02:44]} 6. Bc4 {[%clk 0:02:41]}  e6 {[%clk 0:02:44]} 7. O-O {[%clk 0:02:39]}  b5 {[%clk 0:02:44]} 8. Bd3 {[%clk 0:02:35]}  Be7 {[%clk 0:02:42]} 9. a4 {[%clk 0:02:34]}  b4 {[%clk 0:02:40]} 10. Na2 {[%clk 0:02:34]}  a5 {[%clk 0:02:41]} 11. c3 {[%clk 0:02:33]}  Qb6 {[%clk 0:02:39]} 12. cxb4 {[%clk 0:02:31]}  axb4 {[%clk 0:02:40]} 13. Qd2 {[%clk 0:02:28]}  O-O {[%clk 0:02:30]} 14. Qxb4 {[%clk 0:02:27]}  Qxb4 {[%clk 0:02:27]} 15. Nxb4 {[%clk 0:02:27]}  d5 {[%clk 0:02:27]} 16. Nbc6 {[%clk 0:02:18]}  Nxc6 {[%clk 0:02:27]} 17. Nxc6 {[%clk 0:02:18]}  Bd6 {[%clk 0:02:27]} 18. e5 {[%clk 0:02:18]}  Bxe5 {[%clk 0:02:26]} 19. Nxe5 {[%clk 0:02:17]}  Bb7 {[%clk 0:02:18]} 20. b4 {[%clk 0:02:15]}  d4 {[%clk 0:02:15]} 21. Bb2 {[%clk 0:02:07]}  Nd5 {[%clk 0:02:12]} 22. Bxd4 {[%clk 0:02:05]}  Nxb4 {[%clk 0:02:12]} 23. Bc5 {[%clk 0:02:05]}  Nxd3 {[%clk 0:02:12]} 24. Nxd3 {[%clk 0:01:57]}  Rfc8 {[%clk 0:02:09]} 25. a5 {[%clk 0:01:55]}  Ba6 {[%clk 0:02:08]} 26. Bb6 {[%clk 0:01:26]}  Bxd3 {[%clk 0:02:08]} 27. Rfd1 {[%clk 0:01:27]}  Ba6 {[%clk 0:02:07]} 28. Rd7 {[%clk 0:01:26]}  Rc2 {[%clk 0:01:58]} 29. Rad1 {[%clk 0:01:24]}  h5 {[%clk 0:01:56]} 30. h4 {[%clk 0:01:22]}  Ra2 {[%clk 0:01:48]} 31. Rc7 {[%clk 0:01:15]}  Bb5 {[%clk 0:01:30]} 32. Rb7 {[%clk 0:01:10]}  Ba4 {[%clk 0:01:25]} 33. Rc1 {[%clk 0:00:43]}  Bb3 {[%clk 0:01:23]} 34. Rd7 {[%clk 0:00:35]}  e5 {[%clk 0:01:20]} 35. Rcc7 {[%clk 0:00:29]}  Be6 {[%clk 0:01:16]} 36. Re7 {[%clk 0:00:29]}  e4 {[%clk 0:01:16]} 37. Ra7 {[%clk 0:00:25]}  Rc8 {[%clk 0:01:15]} 38. a6 {[%clk 0:00:20]}  Rc1+ {[%clk 0:01:10]} 39. Kh2 {[%clk 0:00:20]}  Rca1 {[%clk 0:01:11]} 40. Ra8+ {[%clk 0:00:19]}  Kh7 {[%clk 0:01:11]} 41. a7 {[%clk 0:00:19]}  Bd5 {[%clk 0:01:02]} 42. Rd8 {[%clk 0:00:18]}  Bc6 {[%clk 0:01:01]} 43. Rxf7 {[%clk 0:00:15]}  Ra6 {[%clk 0:00:59]} 44. Bd4 {[%clk 0:00:15]}  Rd1 {[%clk 0:00:51]} 45. Rxg7+ {[%clk 0:00:14]}  Kh6 {[%clk 0:00:52]} 46. Rh8# {[%clk 0:00:15]} 1-0


[Site "https://www.chess.com"]

[Event "Titled Tuesday Blitz March 14 Early 2023"]
[White "MunichMouse"]
[Black "Necula, Iulian"]
[BlackFideId "1232380"]
[WhiteElo "2289"]
[BlackElo "1790"]
[Result "1-0"]
[Round "10"]
[TimeControl "180+2"]
[Date "2023.03.14"]
[WhiteClock "0:01:19"]
[BlackClock "0:00:27"]

1. d4 {[%clk 0:03:00]}  d6 {[%clk 0:03:00]} 2. c4 {[%clk 0:03:00]}  f5 {[%clk 0:03:00]} 3. g3 {[%clk 0:03:00]}  Nf6 {[%clk 0:03:01]} 4. Nc3 {[%clk 0:03:00]}  g6 {[%clk 0:03:02]} 5. Bg5 {[%clk 0:03:00]}  Nbd7 {[%clk 0:03:00]} 6. f4 {[%clk 0:03:00]}  h6 {[%clk 0:02:59]} 7. Bxf6 {[%clk 0:03:00]}  Nxf6 {[%clk 0:02:59]} 8. Bg2 {[%clk 0:03:01]}  c6 {[%clk 0:02:59]} 9. e4 {[%clk 0:03:01]}  Bg7 {[%clk 0:02:52]} 10. e5 {[%clk 0:03:01]}  Nh5 {[%clk 0:02:34]} 11. Bf3 {[%clk 0:02:59]}  O-O {[%clk 0:02:26]} 12. Bxh5 {[%clk 0:02:58]}  gxh5 {[%clk 0:02:26]} 13. Nf3 {[%clk 0:02:45]}  dxe5 {[%clk 0:02:27]} 14. fxe5 {[%clk 0:02:35]}  Qe8 {[%clk 0:02:23]} 15. O-O {[%clk 0:02:33]}  Be6 {[%clk 0:02:21]} 16. d5 {[%clk 0:02:31]}  cxd5 {[%clk 0:02:21]} 17. cxd5 {[%clk 0:02:31]}  Rd8 {[%clk 0:02:15]} 18. Qb3 {[%clk 0:02:31]}  Bc8 {[%clk 0:02:12]} 19. Rae1 {[%clk 0:02:24]}  Kh7 {[%clk 0:02:11]} 20. Nh4 {[%clk 0:02:24]}  Qf7 {[%clk 0:01:43]} 21. e6 {[%clk 0:02:16]}  Qf6 {[%clk 0:01:43]} 22. Nxf5 {[%clk 0:01:57]}  Qg5 {[%clk 0:01:42]} 23. Nxg7 {[%clk 0:01:55]}  Kxg7 {[%clk 0:01:42]} 24. Qc4 {[%clk 0:01:47]}  Rxf1+ {[%clk 0:01:40]} 25. Rxf1 {[%clk 0:01:47]}  Qe3+ {[%clk 0:01:37]} 26. Kg2 {[%clk 0:01:44]}  b6 {[%clk 0:01:11]} 27. Rf7+ {[%clk 0:01:34]}  Kg6 {[%clk 0:01:03]} 28. Rxe7 {[%clk 0:01:25]}  Qd2+ {[%clk 0:01:02]} 29. Kh3 {[%clk 0:01:25]}  Qg5 {[%clk 0:00:30]} 30. Qe4+ {[%clk 0:01:20]}  Kf6 {[%clk 0:00:27]} 31. Rf7# {[%clk 0:01:19]} 1-0


[Site "https://www.chess.com"]

[Event "Titled Tuesday Blitz March 14 Early 2023"]
[White "Allam, Yara"]
[Black "Alahakoon, Isuru"]
[WhiteFideId "10615709"]
[BlackFideId "9900993"]
[WhiteElo "1758"]
[BlackElo "1995"]
[Result "0-1"]
[Round "10"]
[TimeControl "180+2"]
[Date "2023.03.14"]
[WhiteClock "0:00:52"]
[BlackClock "0:00:54"]

1. e4 {[%clk 0:03:00]}  d5 {[%clk 0:02:58]} 2. exd5 {[%clk 0:03:00]}  Qxd5 {[%clk 0:02:58]} 3. Nc3 {[%clk 0:02:59]}  Qa5 {[%clk 0:02:58]} 4. g3 {[%clk 0:02:59]}  Nf6 {[%clk 0:02:57]} 5. Bg2 {[%clk 0:03:00]}  Bg4 {[%clk 0:02:50]} 6. Nge2 {[%clk 0:02:57]}  Nc6 {[%clk 0:02:44]} 7. O-O {[%clk 0:02:54]}  O-O-O {[%clk 0:02:39]} 8. a3 {[%clk 0:02:52]}  e5 {[%clk 0:02:38]} 9. b4 {[%clk 0:02:51]}  Bxb4 {[%clk 0:02:37]} 10. Rb1 {[%clk 0:02:49]}  Bxc3 {[%clk 0:02:35]} 11. f3 {[%clk 0:02:44]}  Bxd2 {[%clk 0:02:21]} 12. Bxd2 {[%clk 0:02:35]}  Rxd2 {[%clk 0:02:21]} 13. Qe1 {[%clk 0:02:26]}  Qc5+ {[%clk 0:02:05]} 14. Rf2 {[%clk 0:02:15]}  Rhd8 {[%clk 0:01:49]} 15. fxg4 {[%clk 0:02:12]}  Nxg4 {[%clk 0:01:49]} 16. Bh3 {[%clk 0:02:07]}  f5 {[%clk 0:01:39]} 17. Bxg4 {[%clk 0:02:03]}  fxg4 {[%clk 0:01:40]} 18. Qf1 {[%clk 0:01:51]}  Nd4 {[%clk 0:01:25]} 19. Nxd4 {[%clk 0:01:38]}  Qxd4 {[%clk 0:01:25]} 20. Kg2 {[%clk 0:01:25]}  Rxf2+ {[%clk 0:01:23]} 21. Qxf2 {[%clk 0:01:24]}  Qxf2+ {[%clk 0:01:24]} 22. Kxf2 {[%clk 0:01:24]}  Rd2+ {[%clk 0:01:25]} 23. Ke3 {[%clk 0:01:24]}  Rxc2 {[%clk 0:01:19]} 24. Rf1 {[%clk 0:01:20]}  Rxh2 {[%clk 0:01:15]} 25. Rf8+ {[%clk 0:01:19]}  Kd7 {[%clk 0:01:15]} 26. Rf7+ {[%clk 0:01:20]}  Kd6 {[%clk 0:01:14]} 27. Rxg7 {[%clk 0:01:19]}  Rh3 {[%clk 0:01:11]} 28. Rxg4 {[%clk 0:01:17]}  c5 {[%clk 0:01:04]} 29. Rg7 {[%clk 0:01:07]}  b5 {[%clk 0:01:03]} 30. Kd2 {[%clk 0:01:03]}  a5 {[%clk 0:01:01]} 31. Ra7 {[%clk 0:01:02]}  a4 {[%clk 0:01:01]} 32. Ra6+ {[%clk 0:01:00]}  Kd5 {[%clk 0:01:01]} 33. Rb6 {[%clk 0:00:59]}  Kc4 {[%clk 0:01:01]} 34. Re6 {[%clk 0:00:58]}  Rxg3 {[%clk 0:01:00]} 35. Rxe5 {[%clk 0:00:58]}  Rxa3 {[%clk 0:00:59]} 36. Rh5 {[%clk 0:00:57]}  Ra2+ {[%clk 0:00:58]} 37. Kc1 {[%clk 0:00:57]}  b4 {[%clk 0:00:57]} 38. Rxh7 {[%clk 0:00:56]}  b3 {[%clk 0:00:56]} 39. Rh4+ {[%clk 0:00:55]}  Kb5 {[%clk 0:00:55]} 40. Kb1 {[%clk 0:00:54]}  Rg2 {[%clk 0:00:54]} 41. Rf4 {[%clk 0:00:52]}  a3 {[%clk 0:00:54]} 0-1


[Site "https://www.chess.com"]

[Event "Titled Tuesday Blitz March 14 Early 2023"]
[White "Comas Fabrego, Lluis"]
[Black "Sanchez, Robert"]
[WhiteFideId "2200325"]
[BlackFideId "2034360"]
[WhiteElo "2523"]
[BlackElo "2206"]
[Result "1-0"]
[Round "10"]
[TimeControl "180+2"]
[Date "2023.03.14"]
[WhiteClock "0:00:21"]
[BlackClock "0:01:57"]

1. Nf3 {[%clk 0:03:00]}  Nf6 {[%clk 0:02:58]} 2. c4 {[%clk 0:03:00]}  g6 {[%clk 0:02:59]} 3. g3 {[%clk 0:02:59]}  Bg7 {[%clk 0:03:00]} 4. Bg2 {[%clk 0:02:59]}  d6 {[%clk 0:03:01]} 5. O-O {[%clk 0:02:59]}  O-O {[%clk 0:03:02]} 6. Nc3 {[%clk 0:02:59]}  e5 {[%clk 0:03:01]} 7. Rb1 {[%clk 0:02:58]}  Nc6 {[%clk 0:03:01]} 8. b4 {[%clk 0:02:58]}  Bf5 {[%clk 0:02:58]} 9. d3 {[%clk 0:02:57]}  a5 {[%clk 0:02:58]} 10. a3 {[%clk 0:02:53]}  Qd7 {[%clk 0:02:57]} 11. Re1 {[%clk 0:02:41]}  Bh3 {[%clk 0:02:57]} 12. Bh1 {[%clk 0:02:42]}  h6 {[%clk 0:02:57]} 13. b5 {[%clk 0:02:40]}  Ne7 {[%clk 0:02:53]} 14. Nd2 {[%clk 0:02:31]}  Nf5 {[%clk 0:02:49]} 15. Bxb7 {[%clk 0:02:26]}  Rab8 {[%clk 0:02:47]} 16. Bg2 {[%clk 0:02:25]}  Bxg2 {[%clk 0:02:47]} 17. Kxg2 {[%clk 0:02:26]}  d5 {[%clk 0:02:44]} 18. cxd5 {[%clk 0:02:19]}  Nxd5 {[%clk 0:02:44]} 19. Nxd5 {[%clk 0:02:20]}  Qxd5+ {[%clk 0:02:45]} 20. e4 {[%clk 0:02:20]}  Qa8 {[%clk 0:02:44]} 21. Nf3 {[%clk 0:02:16]}  Nd6 {[%clk 0:02:41]} 22. a4 {[%clk 0:02:14]}  Rfd8 {[%clk 0:02:41]} 23. Bb2 {[%clk 0:02:13]}  f5 {[%clk 0:02:32]} 24. Qc2 {[%clk 0:02:00]}  fxe4 {[%clk 0:02:24]} 25. dxe4 {[%clk 0:02:00]}  Rf8 {[%clk 0:02:23]} 26. Bxe5 {[%clk 0:01:39]}  Rxf3 {[%clk 0:02:12]} 27. Bxg7 {[%clk 0:01:29]}  Rf7 {[%clk 0:02:06]} 28. Bb2 {[%clk 0:01:21]}  Rbf8 {[%clk 0:02:06]} 29. Re2 {[%clk 0:01:14]}  Nxe4 {[%clk 0:02:02]} 30. Qxe4 {[%clk 0:00:21]}  Rxf2+ {[%clk 0:02:01]} 31. Kg1 {[%clk 0:00:22]}  Rxe2 {[%clk 0:01:57]} 32. Qxg6# {[%clk 0:00:21]} 1-0


[Site "https://www.chess.com"]

[Event "Titled Tuesday Blitz March 14 Early 2023"]
[White "Dubov, Daniil"]
[Black "Lazavik, Denis"]
[WhiteFideId "24126055"]
[BlackFideId "13515110"]
[WhiteElo "2802"]
[BlackElo "2560"]
[Result "1-0"]
[Round "11"]
[TimeControl "180+2"]
[Date "2023.03.14"]
[WhiteClock "0:00:02"]
[BlackClock "0:00:07"]

1. d4 {[%clk 0:03:00]}  Nf6 {[%clk 0:02:59]} 2. c4 {[%clk 0:03:01]}  e6 {[%clk 0:03:00]} 3. Nc3 {[%clk 0:03:02]}  Bb4 {[%clk 0:03:00]} 4. e3 {[%clk 0:03:03]}  O-O {[%clk 0:02:59]} 5. Bd3 {[%clk 0:03:03]}  d5 {[%clk 0:03:00]} 6. a3 {[%clk 0:03:03]}  Bxc3+ {[%clk 0:02:58]} 7. bxc3 {[%clk 0:03:04]}  dxc4 {[%clk 0:02:58]} 8. Bxc4 {[%clk 0:03:05]}  c5 {[%clk 0:02:59]} 9. Ne2 {[%clk 0:03:05]}  Qc7 {[%clk 0:02:58]} 10. Ba2 {[%clk 0:03:05]}  b6 {[%clk 0:02:47]} 11. O-O {[%clk 0:03:05]}  Rd8 {[%clk 0:02:46]} 12. Bb2 {[%clk 0:03:03]}  Ba6 {[%clk 0:02:45]} 13. Rc1 {[%clk 0:03:02]}  Nc6 {[%clk 0:02:38]} 14. c4 {[%clk 0:03:01]}  cxd4 {[%clk 0:02:23]} 15. exd4 {[%clk 0:03:02]}  Na5 {[%clk 0:02:23]} 16. d5 {[%clk 0:02:56]}  e5 {[%clk 0:02:05]} 17. Qa4 {[%clk 0:02:38]}  Nd7 {[%clk 0:01:57]} 18. Ng3 {[%clk 0:02:30]}  Nc5 {[%clk 0:01:47]} 19. Qc2 {[%clk 0:02:29]}  f6 {[%clk 0:01:47]} 20. f4 {[%clk 0:02:18]}  Rf8 {[%clk 0:00:49]} 21. Rce1 {[%clk 0:01:29]}  Nd7 {[%clk 0:00:49]} 22. Kh1 {[%clk 0:00:59]}  Bxc4 {[%clk 0:00:41]} 23. Nf5 {[%clk 0:00:54]}  Qc5 {[%clk 0:00:30]} 24. Bb1 {[%clk 0:00:32]}  g6 {[%clk 0:00:30]} 25. Rf3 {[%clk 0:00:22]}  Rae8 {[%clk 0:00:09]} 26. d6 {[%clk 0:00:08]}  e4 {[%clk 0:00:04]} 27. Ne7+ {[%clk 0:00:08]}  Kg7 {[%clk 0:00:05]} 28. Rg3 {[%clk 0:00:07]}  Bd3 {[%clk 0:00:03]} 29. Qd1 {[%clk 0:00:05]}  Bxb1 {[%clk 0:00:03]} 30. Qxb1 {[%clk 0:00:05]}  Nc4 {[%clk 0:00:04]} 31. Bd4 {[%clk 0:00:06]}  Qa5 {[%clk 0:00:02]} 32. Re2 {[%clk 0:00:03]}  Nxd6 {[%clk 0:00:03]} 33. Nc6 {[%clk 0:00:03]}  Qd5 {[%clk 0:00:03]} 34. Qc1 {[%clk 0:00:02]}  Nf5 {[%clk 0:00:03]} 35. Rd2 {[%clk 0:00:01]}  Nxg3+ {[%clk 0:00:02]} 36. hxg3 {[%clk 0:00:02]}  Qh5+ {[%clk 0:00:02]} 37. Kg1 {[%clk 0:00:03]}  Rc8 {[%clk 0:00:03]} 38. Be3 {[%clk 0:00:03]}  Qf5 {[%clk 0:00:04]} 39. Qd1 {[%clk 0:00:02]}  Rxc6 {[%clk 0:00:03]} 40. Rxd7+ {[%clk 0:00:03]}  Rf7 {[%clk 0:00:04]} 41. Rd8 {[%clk 0:00:03]}  Qe6 {[%clk 0:00:04]} 42. Qd4 {[%clk 0:00:03]}  h5 {[%clk 0:00:04]} 43. Qb4 {[%clk 0:00:02]}  Qe7 {[%clk 0:00:04]} 44. Qd2 {[%clk 0:00:02]}  Re6 {[%clk 0:00:04]} 45. f5 {[%clk 0:00:02]}  gxf5 {[%clk 0:00:04]} 46. Bh6+ {[%clk 0:00:02]}  Kh7 {[%clk 0:00:05]} 47. Be3 {[%clk 0:00:03]}  Rg7 {[%clk 0:00:05]} 48. Rd5 {[%clk 0:00:03]}  Re5 {[%clk 0:00:05]} 49. Rd4 {[%clk 0:00:02]}  Rxg3 {[%clk 0:00:06]} 50. Bf4 {[%clk 0:00:02]}  e3 {[%clk 0:00:06]} 51. Qe2 {[%clk 0:00:03]}  Rg4 {[%clk 0:00:06]} 52. Bxe5 {[%clk 0:00:03]}  Qxe5 {[%clk 0:00:05]} 53. Rd7+ {[%clk 0:00:03]}  Kh6 {[%clk 0:00:06]} 54. Rd8 {[%clk 0:00:03]}  Qa1+ {[%clk 0:00:05]} 55. Rd1 {[%clk 0:00:03]}  Qe5 {[%clk 0:00:05]} 56. Rd8 {[%clk 0:00:03]}  Qe4 {[%clk 0:00:06]} 57. Rh8+ {[%clk 0:00:02]}  Kg6 {[%clk 0:00:06]} 58. Rg8+ {[%clk 0:00:01]}  Kh7 {[%clk 0:00:06]} 59. Rd8 {[%clk 0:00:01]}  f4 {[%clk 0:00:07]} 60. Rd7+ {[%clk 0:00:02]}  Rg7 {[%clk 0:00:07]} 61. Qxh5+ {[%clk 0:00:01]}  Kg8 {[%clk 0:00:07]} 62. Rd8+ {[%clk 0:00:02]} 1-0


[Site "https://www.chess.com"]